fUST/lending_fUST_20240524
["ID","MTS","AMOUNT","RATE_DAILY","PERIOD"]
[327820186,1716507035645,-1742.69,0.00024657,2]
[327820187,1716507035657,-933.27,0.00024657,2]
[327820188,1716507035669,-500.0,0.00024657,2]
[327820189,1716507035680,-549.62,0.00024657,2]
[327820190,1716507035692,-151.0,0.00024657,2]
[327820191,1716507035703,-500.0,0.00024657,2]
[327820192,1716507035715,-809.98,0.00024657,2]
[327820193,1716507035728,-500.0,0.00024657,2]
[327820194,1716507035739,-500.0,0.00024657,2]
[327820195,1716507035750,-500.0,0.00024657,2]
[327820196,1716507035762,-500.0,0.00024657,2]
[327820197,1716507035773,-1394.46,0.00024657,2]
[327820198,1716507035784,-600.03,0.00024657,2]
[327820199,1716507035796,-500.0,0.00024657,2]
[327820200,1716507035807,-500.0,0.00024657,2]
[327820201,1716507035818,-500.0,0.00024657,2]
[327820202,1716507035830,-500.0,0.00024657,2]
[327820203,1716507035840,-500.0,0.00024657,2]
[327820204,1716507035849,-500.0,0.00024657,2]
[327820205,1716507035858,-982.25,0.00024657,2]
[327820206,1716507035868,-522.93,0.00024657,2]
[327820207,1716507035878,-500.0,0.00024657,2]
[327820208,1716507035887,-659.95,0.00024657,2]
[327820209,1716507036100,-500.0,0.00024657,2]
[327820210,1716507036122,-500.0,0.00024657,2]
[327820211,1716507036132,-500.0,0.00024657,2]
[327820212,1716507036141,-1670.36,0.00024657,2]
[327820213,1716507036151,-500.0,0.00024657,2]
[327820214,1716507036161,-500.0,0.00024657,2]
[327820215,1716507036170,-500.0,0.00024657,2]
[327820216,1716507036180,-1158.12,0.00024657,2]
[327820217,1716507036190,-985.84,0.00024657,2]
[327820218,1716507036199,-500.0,0.00024657,2]
[327820219,1716507036209,-500.0,0.00024657,2]
[327820220,1716507036218,-500.0,0.00024657,2]
[327820221,1716507036228,-863.86,0.00024657,2]
[327820222,1716507036237,-75.54396356,0.00024657,2]
[327821063,1716507072277,155.01860223,0.00020913,2]
[327821065,1716507189663,5000.0,0.00027,30]
[327821068,1716507941169,-150.0,0.00022557,2]
[327821069,1716507941189,-166.666667,0.00022633,2]
[327821070,1716507941210,-161.838419,0.00023043,2]
[327821071,1716507941231,-393.8053754,0.00023215,2]
[327821072,1716507941250,-80.95820659,0.00023509,2]
[327821073,1716508042115,-556.05075527,0.00023509,2]
[327821074,1716508042142,-153.0,0.00023839,2]
[327821075,1716508042167,-204.5866529,0.00023973,2]
[327821076,1716508042191,-204.5866529,0.00023973,2]
[327821077,1716508042216,-204.5866529,0.00023973,2]
[327821078,1716508042241,-204.5866529,0.00023973,2]
[327821079,1716508042264,-380.4837279,0.00023973,2]
[327821080,1716508042288,-153.0,0.00024332,2]
[327821081,1716508042312,-153.0,0.00024332,2]
[327821082,1716508042338,-153.0,0.00024332,2]
[327821083,1716508042365,-461.28153,0.00024384,2]
[327821084,1716508042388,-158.996904,0.00024384,2]
[327821085,1716508042412,-153.0,0.000244,2]
[327821086,1716508042437,-640.21304432,0.0002441,2]
[327821087,1716508042463,-1390.70138728,0.00024474,2]
[327821088,1716508042487,-157.18801448,0.00024557,2]
[327821089,1716508042512,-403.0491242,0.00024564,2]
[327821090,1716508042538,-153.0,0.000246,2]
[327821091,1716508042563,-306.0,0.000246,2]
[327821092,1716508042588,-5026.78029872,0.00024631,3]
[327821093,1716508053109,-2894.82235227,0.00024631,3]
[327821095,1716508196341,1167.1,0.00028,120]
[327821205,1716508237880,-157.18801445,0.00024557,2]
[327821206,1716508237891,-1783.65798566,0.00024631,3]
[327821313,1716508243030,-41.61631473,0.00024631,3]
[327821315,1716508243040,-300.0,0.00024655,2]
[327821317,1716508243049,-408.12591118,0.00024655,2]
[327821319,1716508243058,-500.0,0.00024656,2]
[327821321,1716508243067,-200.50056979,0.00024656,2]
[327821323,1716508243076,-366.12142865,0.00024656,2]
[327821324,1716508243085,-500.0,0.00024656,2]
[327821325,1716508243095,-569.59007674,0.00024656,2]
[327821326,1716508243103,-3458.45982458,0.00024657,11]
[327821419,1716509133159,-166.666667,0.00022972,2]
[327821420,1716509133180,-850.87051873,0.00024196,2]
[327821421,1716509133200,-463.853243,0.00024384,2]
[327821422,1716509133223,-158.996904,0.00024384,2]
[327821423,1716509133243,-153.0,0.000244,2]
[327821424,1716509133266,-19.25285413,0.000244,2]
[327821427,1716509226142,-133.74714587,0.000244,2]
[327821428,1716509226162,-306.0,0.000244,2]
[327821429,1716509226181,-487.876378,0.000244,2]
[327821430,1716509226200,-153.0,0.000244,2]
[327821431,1716509226220,-157.18801445,0.00024557,2]
[327821432,1716509226239,-281.0,0.000246,2]
[327821433,1716509226260,-153.0,0.000246,2]
[327821434,1716509226279,-155.02170304,0.00024655,2]
[327821435,1716509226298,-299.32524767,0.00024656,2]
[327821436,1716509226319,-263.11792291,0.00024656,2]
[327821437,1716509226340,-500.0,0.00024656,2]
[327821438,1716509226360,-365.28454161,0.00024656,2]
[327821439,1716509226540,-500.0,0.00024656,2]
[327821440,1716509226563,-5932.31842612,0.00024657,11]
[327821441,1716509226582,-1980.43582714,0.00024657,11]
[327821442,1716509226602,-500.0,0.00024657,2]
[327821443,1716509226623,-500.0,0.00024657,2]
[327821444,1716509226642,-500.0,0.00024657,2]
[327821445,1716509226661,-500.0,0.00024657,2]
[327821446,1716509226681,-500.0,0.00024657,2]
[327821447,1716509226700,-500.0,0.00024657,2]
[327821448,1716509226719,-500.0,0.00024657,2]
[327821449,1716509226737,-500.0,0.00024657,2]
[327821450,1716509226758,-500.0,0.00024657,2]
[327821451,1716509226781,-250.92836181,0.00024657,2]
[327821452,1716509226799,-562.34,0.00024657,2]
[327821453,1716509226832,-500.0,0.00024657,2]
[327821454,1716509226854,-541.82,0.00024657,2]
[327821455,1716509226876,-500.0,0.00024657,2]
[327821456,1716509226900,-500.0,0.00024657,2]
[327821457,1716509226921,-500.0,0.00024657,2]
[327821458,1716509226942,-514.37762923,0.00024657,2]
[327821459,1716509226964,-500.0,0.00024657,2]
[327821460,1716509226985,-500.0,0.00024657,2]
[327821461,1716509227006,-576.79,0.00024657,2]
[327821462,1716509227029,-500.0,0.00024657,2]
[327821463,1716509227050,-294.20953369,0.00024657,2]
[327821467,1716509347116,-175.69420049,0.00020913,2]
[327821518,1716509432145,-275.16174657,0.00024384,2]
[327821520,1716509432156,-165.49883343,0.00024384,2]
[327821522,1716509432165,-157.18801445,0.00024557,2]
[327821524,1716509432174,-224.62585078,0.00024656,4]
[327821619,1716509439045,-175.69420049,0.00024656,4]
[327821660,1716509441085,-342.80499812,0.00024656,4]
[327821821,1716509443301,-404.14060852,0.00024656,4]
[327821985,1716509459400,285.83068385,0.00020913,2]
[327821991,1716510346198,-3328.9625547,0.00020913,2]
[327821992,1716510346218,-150.0,0.00022556,2]
[327821993,1716510346242,-166.666666,0.00022984,2]
[327821994,1716510346262,-166.261649,0.00022998,2]
[327821995,1716510346283,-6.57286876,0.00024384,2]
[327821996,1716510435110,-168.25928824,0.00024384,2]
[327821997,1716510435129,-418.627551,0.00024384,2]
[327821998,1716510435148,-63.5301446,0.000244,2]
[327821999,1716510446336,-89.4698554,0.000244,2]
[327822000,1716510446356,-67.76425911,0.000244,2]
[327822001,1716510562838,150.0,0.00022284,2]
[327822099,1716510632909,-166.666666,0.00023154,2]
[327822101,1716510632918,-325.58065401,0.00024,2]
[327822103,1716510632928,-85.23574089,0.000244,2]
[327822105,1716510632937,-153.0,0.000244,2]
[327822107,1716510632948,-403.50211931,0.00024493,2]
[327822109,1716510632960,-153.0,0.000245,2]
[327822111,1716510632969,-57.16381199,0.0002455,2]
[327822115,1716510633006,-4168.60408132,0.0002455,2]
[327822117,1716510633016,-155.84600862,0.00024556,2]
[327822118,1716510633025,-1135.09498585,0.00024557,11]
[327822119,1716510633035,-1720.11232003,0.00024557,2]
[327822120,1716510633045,-9974.53839865,0.00024558,3]
[327822121,1716510633054,-153.0,0.000246,2]
[327822122,1716510633063,-153.0,0.000246,2]
[327822124,1716510633072,-153.0,0.000246,2]
[327822126,1716510633081,-153.0,0.000246,2]
[327822128,1716510633091,-153.0,0.000246,2]
[327822129,1716510633100,-153.0,0.000246,2]
[327822131,1716510633110,-942.90397425,0.00024655,2]
[327822133,1716510633119,-151.0,0.00024656,2]
[327822135,1716510633128,-151.0,0.00024656,2]
[327822136,1716510633137,-151.0,0.00024656,2]
[327822138,1716510633146,-151.0,0.00024656,2]
[327822140,1716510633155,-151.0,0.00024656,2]
[327822142,1716510633165,-151.0,0.00024656,2]
[327822144,1716510633174,-151.0,0.00024656,2]
[327822146,1716510633183,-151.0,0.00024656,2]
[327822148,1716510633194,-151.0,0.00024656,2]
[327822149,1716510633203,-151.0,0.00024656,2]
[327822151,1716510633212,-151.0,0.00024656,2]
[327822152,1716510633221,-151.0,0.00024656,2]
[327822153,1716510633233,-151.0,0.00024656,2]
[327822154,1716510633243,-151.0,0.00024656,2]
[327822155,1716510633252,-151.0,0.00024656,2]
[327822156,1716510633261,-151.0,0.00024656,2]
[327822157,1716510633271,-151.0,0.00024656,2]
[327822158,1716510633283,-151.0,0.00024656,2]
[327822159,1716510633291,-151.0,0.00024656,2]
[327822160,1716510633300,-151.0,0.00024656,2]
[327822161,1716510633311,-158.432512,0.00024656,2]
[327822162,1716510633319,-163.503808,0.00024656,2]
[327822163,1716510633328,-300.435312,0.00024656,2]
[327822164,1716510633337,-151.0,0.00024656,2]
[327822165,1716510633346,-159.343491,0.00024656,2]
[327822166,1716510633355,-4822.86,0.00024656,4]
[327822167,1716510633365,-4822.86,0.00024656,4]
[327822168,1716510633374,-151.0,0.00024656,2]
[327822169,1716510633383,-4114.66139545,0.00024656,4]
[327822262,1716510641213,-708.19860455,0.00024656,4]
[327822264,1716510641222,-151.0,0.00024656,2]
[327822265,1716510641231,-4822.86,0.00024656,4]
[327822268,1716510641245,-151.0,0.00024656,2]
[327822270,1716510641254,-4822.86,0.00024656,4]
[327822271,1716510641264,-2314.86048595,0.00024656,4]
[327822522,1716510643673,-424.27374872,0.00024656,4]
[327822524,1716510643685,-1307.27752978,0.00024656,4]
[327822722,1716511639209,-166.666666,0.00022961,2]
[327822723,1716511639229,-183.333334,0.00024232,2]
[327822724,1716511643110,-592.50554785,0.00024,2]
[327822725,1716511650092,-2682.80907867,0.00024,2]
[327822796,1716511834236,-694.97912463,0.00024,2]
[327822875,1716511839188,-326.89525081,0.00024,2]
[327822879,1716511839204,-2527.98875262,0.00024,2]
[327822882,1716511839215,-12134.38686948,0.00024,2]
[327822999,1716511844101,-8293.23537594,0.00024,2]
[327823000,1716511844110,-397.696173,0.00024384,2]
[327823001,1716511844120,-176.668861,0.00024384,2]
[327823002,1716511844130,-153.0,0.000244,2]
[327823003,1716511844140,-153.0,0.000244,2]
[327823004,1716511844150,-153.0,0.000244,2]
[327823005,1716511844160,-153.0,0.000244,2]
[327823006,1716511844170,-153.0,0.000244,2]
[327823007,1716511844180,-153.0,0.000244,2]
[327823008,1716511844190,-308.8772826,0.000244,2]
[327823009,1716511844200,-153.0,0.000244,2]
[327823010,1716511844211,-153.0,0.00024521,2]
[327823011,1716511844221,-153.0,0.00024521,2]
[327823012,1716511844231,-153.0,0.00024521,2]
[327823013,1716511844242,-153.0,0.00024521,2]
[327823014,1716511844252,-153.0,0.00024521,2]
[327823015,1716511844262,-153.0,0.00024521,2]
[327823017,1716511844272,-166.666666,0.00024526,2]
[327823018,1716511844281,-155.86232532,0.00024556,2]
[327823019,1716511844292,-757.26804943,0.00024557,2]
[327823020,1716511844302,-153.0,0.000246,2]
[327823021,1716511844312,-153.0,0.000246,2]
[327823022,1716511844322,-153.0,0.000246,2]
[327823023,1716511844332,-306.0,0.000246,2]
[327823024,1716511844343,-359.50100004,0.00024655,2]
[327823025,1716511844353,-567.54749292,0.00024656,11]
[327823026,1716511844363,-2172.44763718,0.00024656,7]
[327823027,1716511844373,-155.04496305,0.00024656,4]
[327823028,1716511844383,-230.834374,0.00024656,2]
[327823029,1716511844392,-151.0,0.00024656,2]
[327823030,1716511844401,-151.0,0.00024656,2]
[327823031,1716511844411,-3649.5,0.00024656,4]
[327823032,1716511844421,-3649.5,0.00024656,4]
[327823033,1716511844431,-3649.5,0.00024656,4]
[327823034,1716511844440,-3649.5,0.00024656,4]
[327823035,1716511844450,-3649.5,0.00024656,4]
[327823036,1716511844461,-3649.5,0.00024656,4]
[327823038,1716511844471,-3649.5,0.00024656,4]
[327823040,1716511844482,-151.0,0.00024656,2]
[327823042,1716511844491,-151.0,0.00024656,2]
[327823044,1716511844501,-151.0,0.00024656,2]
[327823045,1716511844511,-151.0,0.00024656,2]
[327823047,1716511844521,-151.0,0.00024656,2]
[327823050,1716511844530,-2966.15921306,0.00024657,11]
[327823052,1716511844540,-500.0,0.00024657,2]
[327823054,1716511844551,-500.0,0.00024657,2]
[327823056,1716511844560,-500.0,0.00024657,2]
[327823058,1716511844570,-151.0,0.00024657,2]
[327823059,1716511844579,-500.0,0.00024657,2]
[327823061,1716511844589,-500.0,0.00024657,2]
[327823063,1716511844599,-500.0,0.00024657,2]
[327823065,1716511844609,-500.0,0.00024657,2]
[327823067,1716511844620,-500.0,0.00024657,2]
[327823069,1716511844631,-500.0,0.00024657,2]
[327823070,1716511844641,-500.0,0.00024657,2]
[327823073,1716511844651,-500.0,0.00024657,2]
[327823076,1716511844662,-500.0,0.00024657,2]
[327823079,1716511844671,-500.0,0.00024657,2]
[327823081,1716511844681,-500.0,0.00024657,2]
[327823083,1716511844691,-508.64634203,0.00024657,2]
[327823084,1716511844703,-500.0,0.00024657,2]
[327823087,1716511844713,-500.0,0.00024657,2]
[327823088,1716511844723,-500.0,0.00024657,2]
[327823090,1716511844733,-500.0,0.00024657,2]
[327823093,1716511844742,-628.39598113,0.00024657,2]
[327823094,1716511844752,-500.0,0.00024657,2]
[327823097,1716511844763,-559.74,0.00024657,2]
[327823098,1716511844772,-500.0,0.00024657,2]
[327823101,1716511844782,-519.24,0.00024657,2]
[327823103,1716511844791,-500.0,0.00024657,2]
[327823105,1716511844801,-500.0,0.00024657,2]
[327823107,1716511844810,-500.0,0.00024657,2]
[327823108,1716511844819,-500.0,0.00024657,2]
[327823110,1716511844829,-1322.79,0.00024657,2]
[327823112,1716511844838,-1379.19,0.00024657,2]
[327823113,1716511844848,-500.0,0.00024657,2]
[327823114,1716511844857,-552.76,0.00024657,2]
[327823115,1716511844867,-500.0,0.00024657,2]
[327823116,1716511844877,-972.29,0.00024657,2]
[327823117,1716511844886,-500.0,0.00024657,2]
[327823118,1716511844896,-500.0,0.00024657,2]
[327823119,1716511844906,-500.0,0.00024657,2]
[327823120,1716511844915,-689.63,0.00024657,2]
[327823121,1716511844925,-1654.07,0.00024657,2]
[327823122,1716511844935,-500.0,0.00024657,2]
[327823123,1716511844944,-500.0,0.00024657,2]
[327823124,1716511844954,-500.0,0.00024657,2]
[327823125,1716511844964,-500.0,0.00024657,2]
[327823126,1716511844973,-500.0,0.00024657,2]
[327823127,1716511844984,-1034.52,0.00024657,2]
[327823128,1716511844993,-500.0,0.00024657,2]
[327823129,1716511845002,-500.0,0.00024657,2]
[327823130,1716511845012,-500.0,0.00024657,2]
[327823131,1716511845021,-500.0,0.00024657,2]
[327823132,1716511845030,-504.99,0.00024657,2]
[327823133,1716511845039,-548.90533498,0.00024657,2]
[327823134,1716511845048,-500.0,0.00024657,2]
[327823135,1716511845057,-500.0,0.00024657,2]
[327823136,1716511845067,-500.0,0.00024657,2]
[327823137,1716511845077,-500.0,0.00024657,2]
[327823138,1716511845086,-749.78,0.00024657,2]
[327823139,1716511845095,-898.18,0.00024657,2]
[327823140,1716511845104,-500.0,0.00024657,2]
[327823141,1716511845114,-500.0,0.00024657,2]
[327823142,1716511845123,-1098.68,0.00024657,2]
[327823143,1716511845131,-616.15515628,0.00024657,2]
[327823144,1716511845140,-500.0,0.00024657,2]
[327823145,1716511845150,-500.0,0.00024657,2]
[327823146,1716511845159,-2193.39,0.00024657,2]
[327823147,1716511845168,-500.0,0.00024657,2]
[327823148,1716511845177,-629.0,0.00024657,2]
[327823149,1716511845186,-881.0,0.00024657,2]
[327823150,1716511845195,-500.0,0.00024657,2]
[327823151,1716511845206,-600.43,0.00024657,2]
[327823152,1716511845216,-500.0,0.00024657,2]
[327823153,1716511845225,-500.0,0.00024657,2]
[327823154,1716511845234,-532.73716483,0.00024657,2]
[327823155,1716511845244,-500.0,0.00024657,2]
[327823156,1716511845253,-385.42,0.00024657,2]
[327823157,1716511845263,-1939.81,0.00024657,2]
[327823158,1716511845272,-500.0,0.00024657,2]
[327823159,1716511845282,-1340.46,0.00024657,2]
[327823160,1716511845291,-500.0,0.00024657,2]
[327823161,1716511845300,-500.0,0.00024657,4]
[327823162,1716511845309,-500.0,0.00024657,2]
[327823163,1716511845319,-500.0,0.00024657,2]
[327823164,1716511845328,-500.0,0.00024657,2]
[327823165,1716511845337,-767.09,0.00024657,2]
[327823166,1716511845347,-2810.55,0.00024657,2]
[327823167,1716511845356,-500.0,0.00024657,2]
[327823168,1716511845366,-2193.3,0.00024657,2]
[327823169,1716511845375,-500.0,0.00024657,2]
[327823170,1716511845384,-500.0,0.00024657,2]
[327823171,1716511845393,-500.0,0.00024657,2]
[327823172,1716511845403,-500.0,0.00024657,2]
[327823173,1716511845412,-151.0,0.00024657,2]
[327823174,1716511845422,-151.0,0.00024657,2]
[327823175,1716511845431,-500.0,0.00024657,2]
[327823176,1716511845441,-2048.65,0.00024657,2]
[327823177,1716511845450,-2538.63,0.00024657,2]
[327823178,1716511845462,-500.0,0.00024657,2]
[327823179,1716511845471,-500.0,0.00024657,2]
[327823180,1716511845480,-500.0,0.00024657,2]
[327823181,1716511845489,-500.0,0.00024657,2]
[327823182,1716511845498,-500.0,0.00024657,2]
[327823183,1716511845508,-500.0,0.00024657,2]
[327823184,1716511845517,-512.88341509,0.00024657,2]
[327823185,1716511845526,-500.0,0.00024657,2]
[327823186,1716511845536,-500.0,0.00024657,2]
[327823187,1716511845545,-500.0,0.00024657,2]
[327823188,1716511845554,-2275.0,0.00024657,2]
[327823189,1716511845564,-3383.16,0.00024657,2]
[327823190,1716511845575,-1224.79,0.00024657,2]
[327823191,1716511845585,-213.59319437,0.00024657,2]
[327823192,1716511845596,-500.0,0.00024657,2]
[327823193,1716511845606,-500.0,0.00024657,2]
[327823194,1716511845616,-500.0,0.00024657,2]
[327823195,1716511845630,-500.0,0.00024657,2]
[327823196,1716511845639,-500.0,0.00024657,2]
[327823197,1716511845648,-500.0,0.00024657,2]
[327823198,1716511845659,-532.63128158,0.00024657,2]
[327823199,1716511845669,-1276.21,0.00024657,2]
[327823200,1716511845678,-500.0,0.00024657,2]
[327823201,1716511845687,-876.49,0.00024657,2]
[327823202,1716511845698,-1654.18,0.00024657,2]
[327823203,1716511845709,-559.99,0.00024657,2]
[327823204,1716511845718,-4079.35,0.00024657,2]
[327823205,1716511845727,-629.66,0.00024657,2]
[327823206,1716511845737,-500.0,0.00024657,2]
[327823207,1716511845747,-1531.42,0.00024657,2]
[327823208,1716511845757,-500.0,0.00024657,2]
[327823209,1716511845766,-500.0,0.00024657,2]
[327823210,1716511845776,-683.84,0.00024657,2]
[327823211,1716511845786,-500.0,0.00024657,2]
[327823212,1716511845795,-500.0,0.00024657,2]
[327823213,1716511845804,-2787.92,0.00024657,2]
[327823214,1716511845813,-500.0,0.00024657,2]
[327823215,1716511845822,-513.65,0.00024657,2]
[327823216,1716511845831,-500.0,0.00024657,2]
[327823217,1716511845840,-737.43,0.00024657,2]
[327823218,1716511845849,-2730.47,0.00024657,2]
[327823219,1716511845995,-5773.66,0.00024657,2]
[327823220,1716511846006,-398.82776812,0.00024657,2]
[327823221,1716511846015,-1372.26,0.00024657,2]
[327823222,1716511846025,-2635.22,0.00024657,2]
[327823223,1716511846034,-500.0,0.00024657,2]
[327823225,1716511846043,-500.0,0.00024657,2]
[327823226,1716511846053,-2130.05,0.00024657,2]
[327823227,1716511846062,-500.0,0.00024657,2]
[327823228,1716511846071,-1093.06,0.00024657,2]
[327823229,1716511846080,-507.26,0.00024657,2]
[327823230,1716511846089,-826.0,0.00024657,2]
[327823231,1716511846099,-500.0,0.00024657,2]
[327823232,1716511846108,-500.0,0.00024657,2]
[327823233,1716511846117,-500.0,0.00024657,2]
[327823234,1716511846126,-500.0,0.00024657,2]
[327823235,1716511846135,-500.0,0.00024657,2]
[327823236,1716511846145,-500.0,0.00024657,2]
[327823237,1716511846154,-500.0,0.00024657,3]
[327823238,1716511846163,-500.0,0.00024657,4]
[327823239,1716511846172,-500.0,0.00024657,5]
[327823240,1716511846182,-500.0,0.00024657,6]
[327823241,1716511846191,-500.0,0.00024657,7]
[327823242,1716511846200,-500.0,0.00024657,8]
[327823243,1716511846210,-500.0,0.00024657,9]
[327823244,1716511846219,-500.0,0.00024657,10]
[327823245,1716511846228,-1456.23,0.00024657,2]
[327823246,1716511846237,-547.97613513,0.00024657,2]
[327823247,1716511846246,-6234.91,0.00024657,2]
[327823248,1716511846255,-510.06540529,0.00024657,2]
[327823249,1716511846264,-537.54,0.00024657,2]
[327823250,1716511846273,-628.76,0.00024657,2]
[327823251,1716511846283,-1079.98,0.00024657,2]
[327823252,1716511846292,-500.0,0.00024657,2]
[327823253,1716511846301,-500.0,0.00024657,2]
[327823254,1716511846310,-500.0,0.00024657,2]
[327823255,1716511846319,-500.0,0.00024657,2]
[327823256,1716511846329,-500.0,0.00024657,2]
[327823257,1716511846339,-2381.4,0.00024657,2]
[327823258,1716511846348,-500.0,0.00024657,2]
[327823260,1716511846357,-500.0,0.00024657,2]
[327823262,1716511846366,-500.0,0.00024657,2]
[327823264,1716511846375,-500.0,0.00024657,2]
[327823266,1716511846384,-295.57874413,0.00024657,2]
[327823282,1716511846581,-204.42125587,0.00024657,2]
[327823284,1716511846591,-155.07974417,0.00024657,2]
[327823323,1716512030170,-1000.0,0.0003,120]
[327823326,1716512826157,-166.666666,0.00022989,2]
[327823327,1716512826178,-3359.33407722,0.00024,2]
[327823328,1716512826198,-400.747542,0.00024384,2]
[327823329,1716512826220,-176.668861,0.00024384,2]
[327823330,1716512826240,-153.0,0.000244,2]
[327823331,1716512826260,-153.0,0.000244,2]
[327823332,1716512826280,-153.0,0.00024521,2]
[327823333,1716512826301,-153.0,0.00024521,2]
[327823334,1716512826321,-153.0,0.00024521,2]
[327823335,1716512826341,-153.0,0.00024521,2]
[327823336,1716512826361,-306.0,0.00024521,2]
[327823337,1716512826380,-153.0,0.00024521,2]
[327823338,1716512826400,-153.0,0.00024521,2]
[327823339,1716512826421,-153.0,0.00024521,2]
[327823340,1716512826440,-153.0,0.00024521,2]
[327823341,1716512826459,-153.0,0.00024521,2]
[327823342,1716512826479,-153.0,0.00024521,2]
[327823343,1716512826498,-153.0,0.000246,2]
[327823344,1716512826519,-511.36074709,0.00024638,2]
[327823345,1716512844114,-153.0,0.000244,2]
[327823346,1716512844135,-375.51693845,0.00024638,2]
[327823347,1716512853113,-1026.03788142,0.00024638,2]
[327823397,1716513038817,-285.83068385,0.00024638,2]
[327823398,1716513038827,-175.69420049,0.00024655,2]
[327823399,1716513038836,-155.00310006,0.00024656,2]
[327823400,1716513038845,-382.32617531,0.00024656,4]
[327823603,1716513044204,-155.86232527,0.00024557,2]
[327823605,1716513044215,-2202.73382469,0.00024656,4]
[327823607,1716513044225,-2585.06,0.00024656,4]
[327823609,1716513044237,-365.68596761,0.00024656,4]
[327823748,1716513047043,-2219.37403239,0.00024656,4]
[327823749,1716513047052,-2585.06,0.00024656,4]
[327823750,1716513047063,-2585.06,0.00024656,4]
[327823751,1716513047072,-420.67442454,0.00024656,4]
[327823752,1716513047339,-285.83068385,0.00024656,4]
[327823753,1716513047351,-1207.29740887,0.00024656,4]
[327823764,1716514047169,-3026.39244256,0.00024379,2]
[327823765,1716514047190,-423.993783,0.00024384,2]
[327823766,1716514047210,-153.0,0.000244,2]
[327823767,1716514047230,-153.0,0.000244,2]
[327823768,1716514047250,-153.0,0.000244,2]
[327823769,1716514047271,-113.99632635,0.00024556,2]
[327823770,1716514052101,-41.86599892,0.00024556,2]
[327823771,1716514052127,-1429.61706263,0.00024558,3]
[327824334,1716515238146,-150.0,0.00022458,2]
[327824335,1716515238167,-164.7030315,0.00023158,2]
[327824336,1716515238187,-166.0049355,0.00023246,2]
[327824337,1716515238208,-153.0,0.00023678,2]
[327824338,1716515238232,-151.0,0.00023696,3]
[327824339,1716515238252,-151.0,0.00023696,3]
[327824340,1716515238273,-154.8512806,0.000237,2]
[327824341,1716515238294,-153.0,0.000237,2]
[327824342,1716515238315,-153.0,0.000237,2]
[327824343,1716515238335,-153.0,0.00023778,2]
[327824344,1716515238358,-153.0,0.00023778,2]
[327824345,1716515238379,-153.0,0.00023778,2]
[327824346,1716515238400,-153.0,0.00023778,2]
[327824347,1716515238420,-155.2962953,0.00023778,2]
[327824348,1716515238441,-157.2341145,0.00023836,2]
[327824349,1716515238462,-151.0,0.00023951,5]
[327824350,1716515238482,-151.0,0.00023951,5]
[327824351,1716515238503,-154.3744982,0.0002411,2]
[327824352,1716515238524,-222.5358444,0.0002411,2]
[327824374,1716515432353,-151.0,0.00023712,3]
[327824376,1716515432362,-151.0,0.00023965,5]
[327824377,1716515432371,-261.0991363,0.0002411,2]
[327824378,1716515432380,-151.0,0.00024219,5]
[327824379,1716515432390,-221.73928229,0.00024328,2]
[327824380,1716515432399,-427.6308,0.00024384,2]